[Event "Early-Titled-Tuesday-Blitz-February-20-2024"]
[Site "Chess.com"]
[Date "2024.02.20"]
[Round "6"]
[White "aistrel"]
[Black "David_George21"]
[Result "1-0"]
[WhiteElo "2528"]
[BlackElo "2319"]
[TimeControl "180+1"]
[EndTime "9:10:06 PST"]
[Termination "aistrel won by checkmate"]

1. d4 {[%clk 0:02:58.6]} 1... Nf6 {[%clk 0:02:58.6]} 2. Nc3 {[%clk 0:02:55.8]}
2... d5 {[%clk 0:02:57.7]} 3. Bf4 {[%clk 0:02:49.8]} 3... a6 {[%clk 0:02:54]} 4.
e3 {[%clk 0:02:50.1]} 4... e6 {[%clk 0:02:53.6]} 5. g4 {[%clk 0:02:49.4]} 5...
b5 {[%clk 0:02:51.9]} 6. g5 {[%clk 0:02:49.1]} 6... Nfd7 {[%clk 0:02:51.9]} 7.
h4 {[%clk 0:02:49.3]} 7... c5 {[%clk 0:02:48.3]} 8. a3 {[%clk 0:02:49.5]} 8...
Nc6 {[%clk 0:02:48.3]} 9. Nf3 {[%clk 0:02:48.6]} 9... Qb6 {[%clk 0:02:47.5]} 10.
h5 {[%clk 0:02:47.5]} 10... Be7 {[%clk 0:02:46.7]} 11. Bg2 {[%clk 0:02:46.7]}
11... Bb7 {[%clk 0:02:42.2]} 12. g6 {[%clk 0:02:46.1]} 12... hxg6 {[%clk
0:02:40.9]} 13. hxg6 {[%clk 0:02:47]} 13... Rxh1+ {[%clk 0:02:36.3]} 14. Bxh1
{[%clk 0:02:47.9]} 14... f6 {[%clk 0:02:35.9]} 15. Bg2 {[%clk 0:02:35.5]} 15...
O-O-O {[%clk 0:02:35.4]} 16. Bh3 {[%clk 0:02:35.5]} 16... Nf8 {[%clk 0:02:34.3]}
17. dxc5 {[%clk 0:02:23.7]} 17... Qxc5 {[%clk 0:02:17.3]} 18. Nd4 {[%clk
0:02:23.8]} 18... f5 {[%clk 0:02:13]} 19. Nxf5 {[%clk 0:02:18.2]} 19... exf5
{[%clk 0:02:10.4]} 20. Bxf5+ {[%clk 0:02:19.1]} 20... Nd7 {[%clk 0:02:03.2]} 21.
Qxd5 {[%clk 0:02:15.5]} 21... Na7 {[%clk 0:01:05.3]} 22. Qxc5+ {[%clk
0:01:51.4]} 22... Bxc5 {[%clk 0:01:06.2]} 23. O-O-O {[%clk 0:01:51.7]} 23... Bc6
{[%clk 0:01:05.3]} 24. Be5 {[%clk 0:01:45.8]} 24... Rf8 {[%clk 0:00:47]} 25. e4
{[%clk 0:01:26.9]} 25... Rxf5 {[%clk 0:00:18.3]} 26. exf5 {[%clk 0:01:05]} 26...
Nxe5 {[%clk 0:00:19.2]} 27. Nd5 {[%clk 0:01:05.8]} 27... Nc4 {[%clk 0:00:16.9]}
28. f6 {[%clk 0:01:02.2]} 28... Bf8 {[%clk 0:00:15.8]} 29. Ne7+ {[%clk
0:00:54.5]} 29... Kc7 {[%clk 0:00:15]} 30. Nf5 {[%clk 0:00:55.4]} 30... gxf6
{[%clk 0:00:14.8]} 31. g7 {[%clk 0:00:56.3]} 31... Bxg7 {[%clk 0:00:15.1]} 32.
Nxg7 {[%clk 0:00:57.2]} 32... Ne5 {[%clk 0:00:14.6]} 33. Nh5 {[%clk 0:00:53.1]}
33... f5 {[%clk 0:00:13.6]} 34. Ng7 {[%clk 0:00:51.1]} 34... f4 {[%clk
0:00:13.3]} 35. Ne6+ {[%clk 0:00:51.7]} 35... Kb6 {[%clk 0:00:13.6]} 36. Nxf4
{[%clk 0:00:52.6]} 36... Nc4 {[%clk 0:00:13.2]} 37. Nd5+ {[%clk 0:00:50]} 37...
Kc5 {[%clk 0:00:12.9]} 38. Ne7 {[%clk 0:00:50.5]} 38... Bf3 {[%clk 0:00:12.3]}
39. Rd3 {[%clk 0:00:49.7]} 39... Be2 {[%clk 0:00:11.8]} 40. Rd5+ {[%clk
0:00:46.5]} 40... Kb6 {[%clk 0:00:12]} 41. f4 {[%clk 0:00:35.2]} 41... Nc8
{[%clk 0:00:10.2]} 42. Nxc8+ {[%clk 0:00:33.2]} 42... Kc7 {[%clk 0:00:08.8]} 43.
Ne7 {[%clk 0:00:32.9]} 43... Bf3 {[%clk 0:00:09.7]} 44. Rd4 {[%clk 0:00:31]}
44... Nd6 {[%clk 0:00:08.4]} 45. Nd5+ {[%clk 0:00:30.4]} 45... Kc6 {[%clk
0:00:08.7]} 46. Nb4+ {[%clk 0:00:30.4]} 46... Kc5 {[%clk 0:00:09]} 47. Rxd6
{[%clk 0:00:26.8]} 47... Kxd6 {[%clk 0:00:08.4]} 48. Nxa6 {[%clk 0:00:27.7]}
48... Ke6 {[%clk 0:00:08.4]} 49. Nc7+ {[%clk 0:00:27.8]} 49... Kf5 {[%clk
0:00:08.6]} 50. Nxb5 {[%clk 0:00:28.7]} 50... Kxf4 {[%clk 0:00:09.1]} 51. Kd2
{[%clk 0:00:28.5]} 51... Ke5 {[%clk 0:00:09.7]} 52. Kc3 {[%clk 0:00:28.7]} 52...
Bc6 {[%clk 0:00:10.3]} 53. Kb4 {[%clk 0:00:29.1]} 53... Kd5 {[%clk 0:00:10.6]}
54. Nc3+ {[%clk 0:00:29]} 54... Kd6 {[%clk 0:00:10.2]} 55. Ka5 {[%clk 0:00:29]}
55... Bf3 {[%clk 0:00:09.4]} 56. Kb6 {[%clk 0:00:28.6]} 56... Bg4 {[%clk
0:00:08.2]} 57. Nb5+ {[%clk 0:00:29]} 57... Kd7 {[%clk 0:00:08]} 58. c4 {[%clk
0:00:29.4]} 58... Kc8 {[%clk 0:00:08.5]} 59. c5 {[%clk 0:00:29.9]} 59... Kb8
{[%clk 0:00:06.6]} 60. c6 {[%clk 0:00:30.4]} 60... Bh3 {[%clk 0:00:03.1]} 61.
c7+ {[%clk 0:00:30.1]} 61... Ka8 {[%clk 0:00:03.7]} 62. Nd6 {[%clk 0:00:29.7]}
62... Bc8 {[%clk 0:00:03.4]} 63. b4 {[%clk 0:00:28.7]} 63... Bb7 {[%clk
0:00:01.8]} 64. c8=Q+ {[%clk 0:00:29.6]} 64... Bxc8 {[%clk 0:00:02.1]} 65. Nxc8
{[%clk 0:00:30.5]} 65... Kb8 {[%clk 0:00:01.8]} 66. Nd6 {[%clk 0:00:29.6]} 66...
Ka8 {[%clk 0:00:02.7]} 67. a4 {[%clk 0:00:29.9]} 67... Kb8 {[%clk 0:00:03.6]}
68. a5 {[%clk 0:00:30.6]} 68... Ka8 {[%clk 0:00:04.5]} 69. a6 {[%clk 0:00:31.3]}
69... Kb8 {[%clk 0:00:05.4]} 70. Ka5 {[%clk 0:00:31.4]} 70... Ka8 {[%clk
0:00:06.3]} 71. b5 {[%clk 0:00:31.8]} 71... Ka7 {[%clk 0:00:07.2]} 72. b6+
{[%clk 0:00:32]} 72... Kb8 {[%clk 0:00:08.1]} 73. b7 {[%clk 0:00:30.9]} 73...
Ka7 {[%clk 0:00:08.3]} 74. Kb5 {[%clk 0:00:31.1]} 74... Kb8 {[%clk 0:00:08.6]}
75. Kc6 {[%clk 0:00:31.7]} 75... Ka7 {[%clk 0:00:09.2]} 76. Kc7 {[%clk
0:00:31.7]} 76... Kxa6 {[%clk 0:00:09.1]} 77. b8=Q {[%clk 0:00:31.6]} 77... Ka5
{[%clk 0:00:10]} 78. Qb5# {[%clk 0:00:31.8]} 1-0

[Event "Early-Titled-Tuesday-Blitz-February-20-2024"]
[Site "Chess.com"]
[Date "2024.02.20"]
[Round "6"]
[White "JiaHaoxiang"]
[Black "NastyaHn"]
[Result "1-0"]
[WhiteElo "2627"]
[BlackElo "2436"]
[TimeControl "180+1"]
[EndTime "9:10:07 PST"]
[Termination "JiaHaoxiang won on time"]

1. d4 {[%clk 0:03:00.9]} 1... d5 {[%clk 0:02:58.6]} 2. Bf4 {[%clk 0:03:00.5]}
2... c5 {[%clk 0:02:55.1]} 3. e3 {[%clk 0:03:00.1]} 3... Nc6 {[%clk 0:02:55.1]}
4. c3 {[%clk 0:03:00.1]} 4... Nf6 {[%clk 0:02:53.7]} 5. Nd2 {[%clk 0:02:59.7]}
5... e6 {[%clk 0:02:51]} 6. Ngf3 {[%clk 0:02:58.9]} 6... Nh5 {[%clk 0:02:43.8]}
7. Be5 {[%clk 0:02:55.2]} 7... Nxe5 {[%clk 0:02:39.9]} 8. dxe5 {[%clk
0:02:55.2]} 8... g6 {[%clk 0:02:37]} 9. Be2 {[%clk 0:02:21.7]} 9... Be7 {[%clk
0:02:36.1]} 10. O-O {[%clk 0:02:18.9]} 10... O-O {[%clk 0:02:35.5]} 11. Ne1
{[%clk 0:02:09.9]} 11... Ng7 {[%clk 0:02:34.6]} 12. f4 {[%clk 0:02:04.9]} 12...
Nf5 {[%clk 0:02:30.8]} 13. Rf3 {[%clk 0:02:03.3]} 13... d4 {[%clk 0:02:14.7]}
14. exd4 {[%clk 0:01:59.5]} 14... cxd4 {[%clk 0:02:14.4]} 15. Nf1 {[%clk
0:01:51.7]} 15... Qb6 {[%clk 0:02:00.6]} 16. Qb3 {[%clk 0:01:44.2]} 16... Bc5
{[%clk 0:01:42.6]} 17. Kh1 {[%clk 0:01:27.6]} 17... dxc3 {[%clk 0:01:38.1]} 18.
Rxc3 {[%clk 0:01:18.7]} 18... Nd4 {[%clk 0:01:25.6]} 19. Qxb6 {[%clk 0:01:17.9]}
19... Bxb6 {[%clk 0:01:25.6]} 20. Bd3 {[%clk 0:01:12.1]} 20... Bd7 {[%clk
0:01:23.4]} 21. Be4 {[%clk 0:01:11.6]} 21... Bc6 {[%clk 0:01:21.6]} 22. Bxc6
{[%clk 0:01:11.1]} 22... Nxc6 {[%clk 0:01:21.7]} 23. Ng3 {[%clk 0:01:02.5]}
23... Rfd8 {[%clk 0:01:04.6]} 24. Ne4 {[%clk 0:01:02.9]} 24... Rd4 {[%clk
0:00:55.2]} 25. Nf6+ {[%clk 0:00:58.1]} 25... Kg7 {[%clk 0:00:54.8]} 26. g3
{[%clk 0:00:58.6]} 26... Rad8 {[%clk 0:00:46.4]} 27. Nf3 {[%clk 0:00:58.7]}
27... Rd1+ {[%clk 0:00:43.7]} 28. Rxd1 {[%clk 0:00:58.1]} 28... Rxd1+ {[%clk
0:00:43.7]} 29. Kg2 {[%clk 0:00:58.8]} 29... Rb1 {[%clk 0:00:25.4]} 30. Rc2
{[%clk 0:00:56.8]} 30... Rd1 {[%clk 0:00:18.7]} 31. Ne8+ {[%clk 0:00:46.7]}
31... Kf8 {[%clk 0:00:17.9]} 32. Nd6 {[%clk 0:00:46.9]} 32... Nd8 {[%clk
0:00:13.3]} 33. Ng5 {[%clk 0:00:39.6]} 33... h6 {[%clk 0:00:12.6]} 34. Nge4
{[%clk 0:00:36]} 34... Ke7 {[%clk 0:00:12.1]} 35. Nc8+ {[%clk 0:00:34.8]} 35...
Kf8 {[%clk 0:00:08.4]} 36. Nxb6 {[%clk 0:00:33.9]} 36... axb6 {[%clk 0:00:08.7]}
37. Nd6 {[%clk 0:00:34]} 37... Nc6 {[%clk 0:00:04.9]} 38. Nxb7 {[%clk 0:00:31]}
38... Nd4 {[%clk 0:00:05.1]} 39. Rf2 {[%clk 0:00:26.3]} 39... Nf5 {[%clk
0:00:04.3]} 40. Re2 {[%clk 0:00:25]} 40... Ke7 {[%clk 0:00:03.6]} 41. h3 {[%clk
0:00:19.4]} 41... Rd7 {[%clk 0:00:03.6]} 42. Nd6 {[%clk 0:00:18]} 42... Nxd6
{[%clk 0:00:04.1]} 43. exd6+ {[%clk 0:00:18.9]} 43... Rxd6 {[%clk 0:00:04.6]}
44. Kf3 {[%clk 0:00:19.2]} 44... f5 {[%clk 0:00:04.8]} 45. Rc2 {[%clk 0:00:19]}
45... Kf6 {[%clk 0:00:05.2]} 46. Ke3 {[%clk 0:00:18.8]} 46... g5 {[%clk
0:00:05.2]} 47. Rc8 {[%clk 0:00:18.6]} 47... Rd1 {[%clk 0:00:05.3]} 48. Rf8+
{[%clk 0:00:18.6]} 48... Kg7 {[%clk 0:00:05.6]} 49. Rb8 {[%clk 0:00:19.1]} 49...
Rg1 {[%clk 0:00:05.3]} 50. Kf2 {[%clk 0:00:19.2]} 50... Rh1 {[%clk 0:00:05]} 51.
Kg2 {[%clk 0:00:19.5]} 51... Rc1 {[%clk 0:00:04.4]} 52. Rxb6 {[%clk 0:00:19.9]}
52... Kf6 {[%clk 0:00:04.6]} 53. Kf3 {[%clk 0:00:19.8]} 53... Rf1+ {[%clk
0:00:04]} 54. Ke2 {[%clk 0:00:19.7]} 54... Rg1 {[%clk 0:00:04.2]} 55. Kf2 {[%clk
0:00:18.5]} 55... Rh1 {[%clk 0:00:04.6]} 56. fxg5+ {[%clk 0:00:18]} 56... hxg5
{[%clk 0:00:04.2]} 57. a4 {[%clk 0:00:18.6]} 57... Rxh3 {[%clk 0:00:04.1]} 58.
a5 {[%clk 0:00:19.3]} 58... Rh2+ {[%clk 0:00:04.4]} 59. Kf3 {[%clk 0:00:18]}
59... g4+ {[%clk 0:00:04.6]} 60. Ke3 {[%clk 0:00:18.4]} 60... Rg2 {[%clk
0:00:05]} 61. a6 {[%clk 0:00:19]} 61... Rxg3+ {[%clk 0:00:05.5]} 62. Kf2 {[%clk
0:00:19.6]} 62... Rh3 {[%clk 0:00:05.9]} 63. a7 {[%clk 0:00:19.3]} 63... g3+
{[%clk 0:00:02.6]} 64. Kg2 {[%clk 0:00:19.1]} 64... Rh8 {[%clk 0:00:02.7]} 65.
Rb8 {[%clk 0:00:18.8]} 1-0

[Event "Early-Titled-Tuesday-Blitz-February-20-2024"]
[Site "Chess.com"]
[Date "2024.02.20"]
[Round "6"]
[White "zverr1"]
[Black "Hope_6"]
[Result "1-0"]
[WhiteElo "2548"]
[BlackElo "2762"]
[TimeControl "180+1"]
[EndTime "9:10:07 PST"]
[Termination "zverr1 won by checkmate"]

1. e4 {[%clk 0:02:43.3]} 1... c6 {[%clk 0:02:59.4]} 2. d4 {[%clk 0:02:43.2]}
2... d5 {[%clk 0:02:59.3]} 3. Nc3 {[%clk 0:02:44.1]} 3... dxe4 {[%clk
0:02:59.2]} 4. Nxe4 {[%clk 0:02:44.4]} 4... Nf6 {[%clk 0:02:59.8]} 5. Nxf6+
{[%clk 0:02:44.7]} 5... exf6 {[%clk 0:03:00.7]} 6. Bc4 {[%clk 0:02:45.1]} 6...
Bd6 {[%clk 0:03:00.4]} 7. Qe2+ {[%clk 0:02:45.4]} 7... Be7 {[%clk 0:02:52.4]} 8.
Nf3 {[%clk 0:02:44.9]} 8... O-O {[%clk 0:02:51.7]} 9. Be3 {[%clk 0:02:39.7]}
9... Bg4 {[%clk 0:02:50.5]} 10. h3 {[%clk 0:02:39.3]} 10... Bh5 {[%clk
0:02:47.6]} 11. g4 {[%clk 0:02:39.4]} 11... Bg6 {[%clk 0:02:46.7]} 12. Bd3
{[%clk 0:02:40]} 12... c5 {[%clk 0:02:32.2]} 13. Bxg6 {[%clk 0:02:32.5]} 13...
hxg6 {[%clk 0:02:31.1]} 14. dxc5 {[%clk 0:02:25.8]} 14... Qa5+ {[%clk
0:02:14.3]} 15. c3 {[%clk 0:02:25.5]} 15... Bxc5 {[%clk 0:01:47.5]} 16. b4
{[%clk 0:00:35.7]} 16... Qa3 {[%clk 0:01:39]} 17. Bxc5 {[%clk 0:00:35.7]} 17...
Qxc3+ {[%clk 0:01:38]} 18. Kf1 {[%clk 0:00:36.5]} 18... Rc8 {[%clk 0:01:15.7]}
19. Kg2 {[%clk 0:00:21.3]} 19... Nd7 {[%clk 0:01:15.4]} 20. Rac1 {[%clk
0:00:19.4]} 20... Qa3 {[%clk 0:01:10]} 21. Rhd1 {[%clk 0:00:18.1]} 21... Nxc5
{[%clk 0:00:52]} 22. bxc5 {[%clk 0:00:18.2]} 22... Rxc5 {[%clk 0:00:50.2]} 23.
Qe7 {[%clk 0:00:15.8]} 23... b6 {[%clk 0:00:33.1]} 24. Rxc5 {[%clk 0:00:04.6]}
24... bxc5 {[%clk 0:00:33.7]} 25. Rd7 {[%clk 0:00:04.8]} 25... Rf8 {[%clk
0:00:32.7]} 26. Rxa7 {[%clk 0:00:04.7]} 26... Qb4 {[%clk 0:00:25.2]} 27. Rc7
{[%clk 0:00:04.7]} 27... Qa3 {[%clk 0:00:22.8]} 28. Rxc5 {[%clk 0:00:04.1]}
28... Qxa2 {[%clk 0:00:21.2]} 29. Rc7 {[%clk 0:00:04.5]} 29... f5 {[%clk
0:00:17.6]} 30. g5 {[%clk 0:00:03.6]} 30... Qa8 {[%clk 0:00:15.3]} 31. Rd7
{[%clk 0:00:03.6]} 31... f4 {[%clk 0:00:14.5]} 32. h4 {[%clk 0:00:03.1]} 32...
Qb8 {[%clk 0:00:08.3]} 33. Rb7 {[%clk 0:00:03.2]} 33... Qc8 {[%clk 0:00:07.5]}
34. Ne5 {[%clk 0:00:03.4]} 34... f3+ {[%clk 0:00:05.7]} 35. Kxf3 {[%clk
0:00:03.4]} 35... Qc3+ {[%clk 0:00:04.9]} 36. Kf4 {[%clk 0:00:03.6]} 36... Qd4+
{[%clk 0:00:04.8]} 37. Kg3 {[%clk 0:00:03.3]} 37... Qc3+ {[%clk 0:00:05]} 38.
Nf3 {[%clk 0:00:03.8]} 38... Qc8 {[%clk 0:00:04.6]} 39. Rd7 {[%clk 0:00:04]}
39... Qb8+ {[%clk 0:00:04.6]} 40. Qd6 {[%clk 0:00:04.5]} 40... Qe8 {[%clk
0:00:04.5]} 41. Re7 {[%clk 0:00:04.4]} 41... Qa8 {[%clk 0:00:04.8]} 42. Rd7
{[%clk 0:00:04.4]} 42... Qe8 {[%clk 0:00:04.7]} 43. Qe7 {[%clk 0:00:04.6]} 43...
Qa8 {[%clk 0:00:04.1]} 44. Ne5 {[%clk 0:00:04.6]} 44... Qb8 {[%clk 0:00:03.5]}
45. Kg4 {[%clk 0:00:03.1]} 45... Qb1 {[%clk 0:00:02.6]} 46. Nxf7 {[%clk
0:00:02.4]} 46... Qf5+ {[%clk 0:00:02.7]} 47. Kg3 {[%clk 0:00:03]} 47... Rxf7
{[%clk 0:00:02.8]} 48. Qxf7+ {[%clk 0:00:01.7]} 48... Qxf7 {[%clk 0:00:03.7]}
49. Rxf7 {[%clk 0:00:02.1]} 49... Kxf7 {[%clk 0:00:04.6]} 50. Kf4 {[%clk
0:00:02.5]} 50... Ke6 {[%clk 0:00:05]} 51. Ke4 {[%clk 0:00:03.3]} 51... Kd6
{[%clk 0:00:05.3]} 52. h5 {[%clk 0:00:02.2]} 52... Ke6 {[%clk 0:00:05.6]} 53.
hxg6 {[%clk 0:00:01.5]} 53... Ke7 {[%clk 0:00:05.5]} 54. Ke5 {[%clk 0:00:02]}
54... Kd7 {[%clk 0:00:05.9]} 55. Kf5 {[%clk 0:00:02.9]} 55... Ke7 {[%clk
0:00:05.9]} 56. Ke5 {[%clk 0:00:03.8]} 56... Kd7 {[%clk 0:00:06.5]} 57. f3
{[%clk 0:00:04.7]} 57... Ke7 {[%clk 0:00:07.1]} 58. f4 {[%clk 0:00:05.1]} 58...
Kd7 {[%clk 0:00:07.7]} 59. f5 {[%clk 0:00:06]} 59... Ke7 {[%clk 0:00:08.3]} 60.
f6+ {[%clk 0:00:06.7]} 60... gxf6+ {[%clk 0:00:08.7]} 61. gxf6+ {[%clk
0:00:07.6]} 61... Kf8 {[%clk 0:00:09.4]} 62. Ke6 {[%clk 0:00:08.3]} 62... Kg8
{[%clk 0:00:09.9]} 63. g7 {[%clk 0:00:07.9]} 63... Kh7 {[%clk 0:00:10]} 64. Kf7
{[%clk 0:00:08.7]} 64... Kh6 {[%clk 0:00:09.9]} 65. g8=Q {[%clk 0:00:09.3]}
65... Kh5 {[%clk 0:00:10.4]} 66. Qg3 {[%clk 0:00:09.9]} 66... Kh6 {[%clk
0:00:10.5]} 67. Qh4# {[%clk 0:00:10.2]} 1-0

[Event "Early-Titled-Tuesday-Blitz-February-20-2024"]
[Site "Chess.com"]
[Date "2024.02.20"]
[Round "6"]
[White "Akylbek2021"]
[Black "Chess4always"]
[Result "1-0"]
[WhiteElo "2276"]
[BlackElo "1987"]
[TimeControl "180+1"]
[EndTime "9:10:11 PST"]
[Termination "Akylbek2021 won by resignation"]

1. e4 {[%clk 0:02:30.3]} 1... c6 {[%clk 0:02:59.7]} 2. Nf3 {[%clk 0:02:29.8]}
2... d5 {[%clk 0:02:59.3]} 3. d3 {[%clk 0:02:30.6]} 3... dxe4 {[%clk 0:02:59.3]}
4. Ng5 {[%clk 0:02:31.2]} 4... Bf5 {[%clk 0:02:57.7]} 5. dxe4 {[%clk 0:02:30]}
5... Qxd1+ {[%clk 0:02:57]} 6. Kxd1 {[%clk 0:02:30.9]} 6... Bg6 {[%clk
0:02:56.6]} 7. f3 {[%clk 0:02:28.9]} 7... h6 {[%clk 0:02:56.8]} 8. Nh3 {[%clk
0:02:28.9]} 8... e5 {[%clk 0:02:55.5]} 9. Be3 {[%clk 0:02:26.4]} 9... Nd7 {[%clk
0:02:55.5]} 10. c3 {[%clk 0:02:25.9]} 10... Bc5 {[%clk 0:02:56.1]} 11. Bxc5
{[%clk 0:02:25.1]} 11... Nxc5 {[%clk 0:02:57]} 12. Kc2 {[%clk 0:02:25.8]} 12...
O-O-O {[%clk 0:02:56.6]} 13. Nd2 {[%clk 0:02:26.1]} 13... f6 {[%clk 0:02:56.8]}
14. Bc4 {[%clk 0:02:25.7]} 14... Ne7 {[%clk 0:02:56.3]} 15. a4 {[%clk
0:02:25.4]} 15... Kc7 {[%clk 0:02:50.9]} 16. b4 {[%clk 0:02:24.4]} 16... Nd7
{[%clk 0:02:48.9]} 17. Rhd1 {[%clk 0:02:22.9]} 17... Nb6 {[%clk 0:02:48.9]} 18.
Bb3 {[%clk 0:02:21.8]} 18... Nec8 {[%clk 0:02:49]} 19. a5 {[%clk 0:02:21.3]}
19... Nd7 {[%clk 0:02:48.1]} 20. Nc4 {[%clk 0:02:21.2]} 20... Nf8 {[%clk
0:02:42.7]} 21. Rxd8 {[%clk 0:02:12.9]} 21... Kxd8 {[%clk 0:02:43.6]} 22. a6
{[%clk 0:02:07.1]} 22... b6 {[%clk 0:02:40.2]} 23. Nf2 {[%clk 0:02:03.2]} 23...
Bf7 {[%clk 0:02:40]} 24. h4 {[%clk 0:01:55.4]} 24... Kc7 {[%clk 0:02:38.9]} 25.
Nd3 {[%clk 0:01:49.8]} 25... Ne6 {[%clk 0:02:39]} 26. g3 {[%clk 0:01:48.6]}
26... Rd8 {[%clk 0:02:37.7]} 27. Rd1 {[%clk 0:01:47.1]} 27... Nf8 {[%clk
0:02:36.6]} 28. Ne3 {[%clk 0:01:45.2]} 28... Bxb3+ {[%clk 0:02:35.1]} 29. Kxb3
{[%clk 0:01:46]} 29... Nd6 {[%clk 0:02:33.6]} 30. h5 {[%clk 0:01:40.2]} 30...
Ne6 {[%clk 0:02:21.5]} 31. Nb2 {[%clk 0:01:31]} 31... Ng5 {[%clk 0:02:13.5]} 32.
Rf1 {[%clk 0:01:22.8]} 32... Nb5 {[%clk 0:02:12.1]} 33. Nf5 {[%clk 0:01:20.5]}
33... Rd7 {[%clk 0:02:07.2]} 34. Nc4 {[%clk 0:01:17.9]} 34... Ne6 {[%clk
0:02:03.8]} 35. Nce3 {[%clk 0:01:14.4]} 35... Rd3 {[%clk 0:01:59.5]} 36. Rc1
{[%clk 0:01:09.5]} 36... Nbd4+ {[%clk 0:01:57.2]} 37. Kc4 {[%clk 0:01:07.4]}
37... Ne2 {[%clk 0:01:28.8]} 38. Rc2 {[%clk 0:00:56.2]} 38... Rxe3 {[%clk
0:01:13.1]} 39. Nxe3 {[%clk 0:00:55.4]} 39... Nxg3 {[%clk 0:01:12]} 40. Rg2
{[%clk 0:00:49.5]} 40... Nxh5 {[%clk 0:01:09.8]} 41. Nf5 {[%clk 0:00:50]} 41...
Nhf4 {[%clk 0:01:09.2]} 42. Rg3 {[%clk 0:00:47]} 42... Nh5 {[%clk 0:01:05.7]}
43. Rg1 {[%clk 0:00:44.2]} 43... b5+ {[%clk 0:00:58.3]} 44. Kb3 {[%clk
0:00:41.6]} 44... Kb6 {[%clk 0:00:58.9]} 45. Ra1 {[%clk 0:00:31.7]} 45... c5
{[%clk 0:00:47.7]} 46. Ne3 {[%clk 0:00:27.6]} 46... c4+ {[%clk 0:00:43.6]} 47.
Kc2 {[%clk 0:00:27.1]} 47... Nhf4 {[%clk 0:00:43.4]} 48. Nd5+ {[%clk 0:00:26.2]}
48... Nxd5 {[%clk 0:00:42.9]} 49. exd5 {[%clk 0:00:27.1]} 49... Nf4 {[%clk
0:00:36.5]} 50. Rg1 {[%clk 0:00:20.3]} 50... g5 {[%clk 0:00:35.6]} 51. Rh1
{[%clk 0:00:18.2]} 51... h5 {[%clk 0:00:36]} 52. Rd1 {[%clk 0:00:16.8]} 52...
Kc7 {[%clk 0:00:34.7]} 53. Ra1 {[%clk 0:00:07.6]} 53... Nxd5 {[%clk 0:00:32.5]}
54. Ra5 {[%clk 0:00:06.6]} 54... Kb6 {[%clk 0:00:32.6]} 55. Ra1 {[%clk
0:00:06.3]} 55... h4 {[%clk 0:00:26.7]} 56. Kd2 {[%clk 0:00:06.8]} 56... Nf4
{[%clk 0:00:24.6]} 57. Ke3 {[%clk 0:00:06.4]} 57... h3 {[%clk 0:00:23.8]} 58.
Ke4 {[%clk 0:00:06.4]} 58... Nd3 {[%clk 0:00:21.3]} 59. Kf5 {[%clk 0:00:05]}
59... Nf2 {[%clk 0:00:18.6]} 60. Kxf6 {[%clk 0:00:03.4]} 60... h2 {[%clk
0:00:18.9]} 61. Kxg5 {[%clk 0:00:03.3]} 61... h1=Q {[%clk 0:00:19.5]} 62. Rxh1
{[%clk 0:00:03.6]} 62... Nxh1 {[%clk 0:00:20.4]} 63. Kf5 {[%clk 0:00:03.8]}
63... Kxa6 {[%clk 0:00:20.7]} 64. Kxe5 {[%clk 0:00:04.4]} 64... Ng3 {[%clk
0:00:21.1]} 65. f4 {[%clk 0:00:03.7]} 65... Ne2 {[%clk 0:00:21.7]} 66. f5 {[%clk
0:00:03.5]} 66... Ng3 {[%clk 0:00:22]} 67. f6 {[%clk 0:00:02.8]} 67... Ne4
{[%clk 0:00:15.2]} 68. Kxe4 {[%clk 0:00:02.9]} 1-0